fUST/lending_fUST_20250819
["ID","MTS","AMOUNT","RATE_DAILY","PERIOD"]
[380154461,1755580241410,-480.0,0.00019726,2]
[380154462,1755580241420,-480.0,0.00019726,2]
[380154463,1755580241430,-683.84,0.00019726,2]
[380154464,1755580241440,-574.31,0.00019726,2]
[380154465,1755580241451,-480.49304443,0.00019726,2]
[380154466,1755580241460,-480.0,0.00019726,2]
[380154467,1755580241469,-480.0,0.00019726,2]
[380154468,1755580241479,-4682.2,0.00019726,2]
[380154469,1755580241488,-2020.76,0.00019726,2]
[380154470,1755580241498,-480.0,0.00019726,2]
[380154471,1755580241507,-480.0,0.00019726,2]
[380154472,1755580241517,-1756.48,0.00019726,2]
[380154473,1755580241526,-626.7,0.00019726,2]
[380154474,1755580241536,-480.0,0.00019726,2]
[380154475,1755580241545,-480.0,0.00019726,2]
[380154476,1755580241555,-480.0,0.00019726,2]
[380154477,1755580241564,-1588.14,0.00019726,2]
[380154478,1755580241574,-480.0,0.00019726,2]
[380154479,1755580241584,-480.0,0.00019726,2]
[380154480,1755580241593,-480.0,0.00019726,2]
[380154481,1755580241603,-731.21,0.00019726,2]
[380154482,1755580241612,-480.0,0.00019726,2]
[380154483,1755580241621,-480.0,0.00019726,2]
[380154484,1755580241630,-576.05,0.00019726,2]
[380154485,1755580241639,-487.75,0.00019726,2]
[380154486,1755580241649,-1522.88,0.00019726,2]
[380154487,1755580241658,-480.0,0.00019726,2]
[380154488,1755580241667,-480.0,0.00019726,2]
[380154489,1755580241764,-480.0,0.00019726,2]
[380154490,1755580241775,-696.9,0.00019726,2]
[380154491,1755580241784,-480.0,0.00019726,2]
[380154492,1755580241794,-566.12,0.00019726,2]
[380154493,1755580241803,-480.0,0.00019726,2]
[380154494,1755580241812,-480.0,0.00019726,2]
[380154495,1755580241822,-480.0,0.00019726,2]
[380154496,1755580241833,-4128.2,0.00019726,2]
[380154497,1755580241842,-480.0,0.00019726,2]
[380154498,1755580241851,-809.12,0.00019726,2]
[380154499,1755580241860,-480.0,0.00019726,2]
[380154500,1755580241869,-774.82,0.00019726,2]
[380154501,1755580241878,-2671.89,0.00019726,2]
[380154502,1755580241887,-490.44,0.00019726,2]
[380154503,1755580241896,-480.0,0.00019726,2]
[380154504,1755580241905,-500.0,0.00019726,2]
[380154505,1755580241915,-293.8943201,0.00019726,2]
[380154506,1755580241925,-160.842982,0.00019726,2]
[380154507,1755580241934,-936.3918826,0.00019726,2]
[380154508,1755580241943,-293.8943201,0.00019726,2]
[380154509,1755580241953,-160.842982,0.00019726,2]
[380154510,1755580241962,-293.8943201,0.00019726,2]
[380154511,1755580241971,-160.722996,0.00019726,2]
[380154512,1755580241980,-580.787823,0.00019726,2]
[380154513,1755580241989,-537.8230547,0.00019726,2]
[380154514,1755580241999,-580.787823,0.00019726,2]
[380154515,1755580242008,-293.8392635,0.00019726,2]
[380154516,1755580242017,-302.48582854,0.00019737,2]
[380154517,1755580242027,-215.79176414,0.00019848,2]
[380154518,1755580242036,-528.6845513,0.00019849,2]
[380154519,1755580242045,-160.0,0.00019849,2]
[380154520,1755580242055,-216.8835046,0.00019849,2]
[380154521,1755580242064,-160.0,0.00019849,2]
[380154522,1755580242073,-375.88899365,0.00019849,2]
[380154523,1755580242082,-232.21311493,0.00019849,2]
[380154524,1755580242092,-417.15472785,0.00019849,2]
[380154525,1755580242101,-12685.85563623,0.00019849,2]
[380154526,1755580242110,-160.0,0.00019849,2]
[380154527,1755580242119,-843.93972674,0.00019849,2]
[380154528,1755580242129,-204.661516,0.00019863,2]
[380154529,1755580242138,-350.05226137,0.00019899,2]
[380154530,1755580242147,-453.72874281,0.00019927,4]
[380154531,1755580242157,-258.80967205,0.00019973,2]
[380154532,1755580242167,-501.16140526,0.00019973,2]
[380154533,1755580242176,-500.0,0.00019973,2]
[380154534,1755580242186,-517.51891633,0.00019973,2]
[380154535,1755580242195,-100000.0,0.0001999,2]
[380154536,1755580242204,-480.0,0.00019999,2]
[380154537,1755580242213,-4689.26,0.00019999,2]
[380154538,1755580242222,-1222.85,0.00019999,2]
[380154539,1755580242231,-2860.05,0.00019999,2]
[380154540,1755580242241,-480.0,0.00019999,2]
[380154541,1755580242250,-1203.52,0.00019999,2]
[380154542,1755580242260,-705.72,0.00019999,2]
[380154543,1755580242269,-492.73,0.00019999,2]
[380154544,1755580242278,-483.44201666,0.0002,2]
[380154545,1755580242287,-200.39754688,0.0002,2]
[380154546,1755580242297,-282.67960988,0.0002,2]
[380154547,1755580242307,-480.0,0.0002,2]
[380154548,1755580242316,-510.8,0.0002,2]
[380154549,1755580242326,-450.82653825,0.0002,2]
[380154550,1755580242335,-301.40638054,0.0002,2]
[380154551,1755580242344,-207.16,0.0002,2]
[380154552,1755580242353,-480.0,0.0002,2]
[380154553,1755580242363,-480.0,0.0002,2]
[380154554,1755580242372,-480.0,0.0002,2]
[380154555,1755580242382,-498.85,0.0002,2]
[380154556,1755580242391,-524.4,0.0002,2]
[380154557,1755580242400,-480.0,0.0002,2]
[380154558,1755580242410,-480.0,0.0002,2]
[380154559,1755580242419,-480.0,0.0002,2]
[380154560,1755580242429,-480.0,0.0002,2]
[380154561,1755580242438,-522.48,0.0002,2]
[380154562,1755580242447,-243.97253429,0.0002,2]
[380154563,1755580242457,-480.0,0.0002,2]
[380154564,1755580242466,-151.0,0.0002,2]
[380154565,1755580242475,-151.0,0.0002,2]
[380154566,1755580242485,-151.0,0.0002,2]
[380154567,1755580242494,-401.57479534,0.0002,2]
[380154568,1755580242503,-480.0,0.0002,2]
[380154569,1755580242513,-486.82,0.0002,2]
[380154570,1755580242522,-480.0,0.0002,2]
[380154571,1755580242531,-500.4,0.0002,2]
[380154572,1755580242541,-480.0,0.0002,2]
[380154573,1755580242550,-151.0,0.0002,2]
[380154574,1755580242558,-151.0,0.0002,2]
[380154575,1755580242568,-637.29770575,0.0002,2]
[380154576,1755580242588,-109.37229425,0.0002,2]
[380154577,1755580242597,-307.450308,0.0002,2]
[380154578,1755580242607,-307.450308,0.0002,2]
[380154579,1755580242616,-1512.12,0.0002,2]
[380154580,1755580242626,-483.41,0.0002,2]
[380154582,1755580242635,-480.0,0.0002,2]
[380154583,1755580242644,-151.0,0.0002,2]
[380154584,1755580242654,-480.0,0.0002,2]
[380154585,1755580242664,-603.04,0.0002,2]
[380154586,1755580242674,-480.0,0.0002,2]
[380154587,1755580242683,-1713.33,0.0002,2]
[380154589,1755580242692,-151.0,0.0002,2]
[380154590,1755580242702,-249.427536,0.0002,2]
[380154591,1755580242712,-480.0,0.0002,2]
[380154592,1755580242721,-249.427536,0.0002,2]
[380154593,1755580242730,-151.0,0.0002,2]
[380154594,1755580242739,-151.0,0.0002,2]
[380154595,1755580242749,-151.0,0.0002,2]
[380154596,1755580242761,-167.9847555,0.0002,2]
[380154597,1755580242773,-312.0152445,0.0002,2]
[380154598,1755580242782,-151.0,0.0002,2]
[380154599,1755580242791,-480.0,0.0002,2]
[380154600,1755580242801,-37.76590783,0.0002,2]
[380154601,1755580242873,-481.31973108,0.00019178,2]
[380154602,1755580242882,-126.53055242,0.0002,2]
[380154603,1755580242893,-267.183561,0.0002,2]
[380154604,1755580242904,-48.51997875,0.0002,2]
[380154605,1755580242913,-151.0,0.0002,2]
[380154606,1755580242922,-58.70002125,0.0002,2]
[380154607,1755580242933,-92.29997875,0.0002,2]
[380154608,1755580242942,-210.08102127,0.0002,2]
[380154609,1755580242953,-269.91897873,0.0002,2]
[380154610,1755580242966,-233.09290524,0.0002,2]
[380154611,1755580242977,-246.90709476,0.0002,2]
[380154612,1755580242986,-12.09290524,0.0002,2]
[380154613,1755580243171,-486.05308975,0.00019178,2]
[380154614,1755580243180,-480.0,0.00019178,2]
[380154615,1755580243189,-739.51709476,0.0002,2]
[380154616,1755580243199,-701.01,0.0002,2]
[380154617,1755580243212,-791.494942,0.0002,2]
[380154618,1755580243222,-256.03773,0.0002,2]
[380154619,1755580243231,-791.494942,0.0002,2]
[380154620,1755580243240,-480.0,0.0002,2]
[380154621,1755580243249,-256.03773,0.0002,2]
[380154622,1755580243258,-151.0,0.0002,2]
[380154623,1755580243267,-480.0,0.0002,2]
[380154624,1755580243276,-1276.8,0.0002,2]
[380154625,1755580243285,-151.0,0.0002,2]
[380154626,1755580243294,-480.0,0.0002,2]
[380154627,1755580243303,-151.0,0.0002,2]
[380154628,1755580243312,-151.0,0.0002,2]
[380154629,1755580243321,-151.0,0.0002,2]
[380154630,1755580243330,-151.0,0.0002,2]
[380154631,1755580243339,-151.0,0.0002,2]
[380154632,1755580243348,-480.0,0.0002,2]
[380154633,1755580243357,-151.0,0.0002,2]
[380154634,1755580243367,-480.0,0.0002,2]
[380154635,1755580243375,-151.0,0.0002,2]
[380154636,1755580243384,-675.59,0.0002,2]
[380154637,1755580243393,-480.0,0.0002,2]
[380154638,1755580243402,-1121.95,0.0002,2]
[380154639,1755580243411,-151.0,0.0002,2]
[380154640,1755580243422,-151.0,0.0002,2]
[380154641,1755580243431,-210.512124,0.0002,2]
[380154642,1755580243440,-210.512124,0.0002,2]
[380154643,1755580243449,-151.0,0.0002,2]
[380154644,1755580243459,-1365.03,0.0002,2]
[380154645,1755580243468,-617.8,0.0002,2]
[380154646,1755580243478,-679.88,0.0002,2]
[380154647,1755580243487,-520.18,0.0002,2]
[380154648,1755580243497,-1345.49,0.0002,2]
[380154649,1755580243507,-1037.02,0.0002,2]
[380154650,1755580243517,-629.35,0.0002,2]
[380154651,1755580243526,-480.0,0.0002,2]
[380154652,1755580243535,-522.31,0.0002,2]
[380154653,1755580243545,-1938.41,0.0002,2]
[380154654,1755580243554,-551.50257906,0.0002,2]
[380154655,1755580243563,-549.80974041,0.0002,2]
[380154656,1755580243572,-683.84,0.0002,2]
[380154657,1755580243582,-574.31,0.0002,2]
[380154658,1755580243664,-155.99,0.0002,2]
[380154659,1755580243684,-151.0,0.0002,2]
[380154660,1755580243693,-480.0,0.0002,2]
[380154661,1755580243702,-4682.2,0.0002,2]
[380154662,1755580243713,-2020.76,0.0002,2]
[380154663,1755580243722,-480.0,0.0002,2]
[380154664,1755580243731,-1756.48,0.0002,2]
[380154665,1755580243741,-626.7,0.0002,2]
[380154667,1755580243752,-480.0,0.0002,2]
[380154669,1755580243764,-480.0,0.0002,2]
[380154671,1755580243773,-1588.14,0.0002,2]
[380154673,1755580243782,-480.0,0.0002,2]
[380154675,1755580243792,-480.0,0.0002,2]
[380154677,1755580243801,-158.57051047,0.0002,2]
[380154679,1755580243810,-731.21,0.0002,2]
[380154681,1755580243819,-151.0,0.0002,2]
[380154683,1755580243828,-403.02277554,0.0002,2]
[380154685,1755580243838,-151.0,0.0002,2]
[380154687,1755580243847,-151.0,0.0002,2]
[380154688,1755580243856,-480.0,0.0002,2]
[380154690,1755580243865,-576.05,0.0002,2]
[380154692,1755580243875,-362.268435,0.0002,2]
[380154694,1755580243885,-362.268435,0.0002,2]
[380154696,1755580243894,-151.0,0.0002,2]
[380154698,1755580243904,-487.75,0.0002,2]
[380154700,1755580243913,-1522.88,0.0002,2]
[380154702,1755580243922,-480.0,0.0002,2]
[380154704,1755580243931,-151.0,0.0002,2]
[380154706,1755580243941,-480.0,0.0002,2]
[380154708,1755580243950,-458.48039401,0.0002,2]
[380154710,1755580243961,-696.9,0.0002,2]
[380154713,1755580243970,-566.12,0.0002,2]
[380154715,1755580243979,-480.0,0.0002,2]
[380154716,1755580243989,-480.0,0.0002,2]
[380154718,1755580243999,-4128.2,0.0002,2]
[380154720,1755580244008,-151.0,0.0002,2]
[380154722,1755580244017,-151.0,0.0002,2]
[380154724,1755580244027,-151.000001,0.0002,2]
[380154727,1755580244038,-809.12,0.0002,2]
[380154728,1755580244049,-774.82,0.0002,2]
[380154730,1755580244061,-2671.89,0.0002,2]
[380154732,1755580244071,-490.44,0.0002,2]
[380154734,1755580244080,-151.0,0.0002,2]
[380154736,1755580244089,-480.0,0.0002,2]
[380154738,1755580244098,-151.0,0.0002,2]
[380154740,1755580244107,-453.72874281,0.00020116,4]
[380154742,1755580244117,-580.8939941,0.00020137,2]
[380154744,1755580244126,-580.8939941,0.00020137,2]
[380154746,1755580244136,-580.8939941,0.00020137,2]
[380154748,1755580244145,-980.628,0.00020139,2]
[380154750,1755580244155,-637.0,0.00020139,2]
[380154752,1755580244164,-2153.0,0.00020139,2]
[380154754,1755580244174,-350.05226137,0.00020173,2]
[380154756,1755580244183,-408.0,0.00020186,2]
[380154758,1755580244193,-302.22106492,0.00020196,2]
[380154760,1755580244203,-1905.46046943,0.00020203,2]
[380154762,1755580244213,-587.7335836,0.00020247,2]
[380154764,1755580244222,-480.0,0.00020273,2]
[380154766,1755580244231,-480.0,0.00020273,2]
[380154768,1755580244244,-480.0,0.00020273,2]
[380154770,1755580244254,-4689.26,0.00020273,2]
[380154772,1755580244265,-480.0,0.00020273,2]
[380154774,1755580244275,-524.4,0.00020273,2]
[380154776,1755580244287,-480.0,0.00020273,2]
[380154778,1755580244297,-480.0,0.00020273,2]
[380154780,1755580244306,-480.0,0.00020273,2]
[380154782,1755580244316,-1222.85,0.00020273,2]
[380154784,1755580244325,-480.0,0.00020273,2]
[380154786,1755580244334,-522.48,0.00020273,2]
[380154788,1755580244344,-480.0,0.00020273,2]
[380154790,1755580244353,-221.856537,0.00020273,2]
[380154792,1755580244363,-480.0,0.00020273,2]
[380154794,1755580244372,-486.82,0.00020273,2]
[380154796,1755580244382,-250.53456415,0.00020273,2]
[380154798,1755580244393,-500.4,0.00020273,2]
[380154800,1755580244403,-746.67,0.00020273,2]
[380154802,1755580244413,-483.41,0.00020273,2]
[380154804,1755580244423,-480.0,0.00020273,2]
[380154806,1755580244432,-1512.12,0.00020273,2]
[380154808,1755580244442,-480.0,0.00020273,2]
[380154810,1755580244452,-2860.05,0.00020273,2]
[380154812,1755580244462,-603.04,0.00020273,2]
[380154814,1755580244472,-480.0,0.00020273,2]
[380154816,1755580244481,-1713.33,0.00020273,2]
[380154818,1755580244490,-480.0,0.00020273,2]
[380154821,1755580244499,-480.0,0.00020273,2]
[380154823,1755580244508,-480.0,0.00020273,2]
[380154824,1755580244517,-480.0,0.00020273,2]
[380154826,1755580244527,-480.0,0.00020273,2]
[380154828,1755580244536,-490.83624417,0.00020273,2]
[380154830,1755580244545,-751.61,0.00020273,2]
[380154832,1755580244554,-701.01,0.00020273,2]
[380154834,1755580244563,-480.0,0.00020273,2]
[380154836,1755580244572,-480.0,0.00020273,2]
[380154838,1755580244582,-1276.8,0.00020273,2]
[380154840,1755580244591,-282.23420419,0.00020273,2]
[380154842,1755580244601,-480.0,0.00020273,2]
[380154844,1755580244610,-480.0,0.00020273,2]
[380154846,1755580244619,-675.59,0.00020273,2]
[380154848,1755580244628,-480.0,0.00020273,2]
[380154850,1755580244637,-1121.95,0.00020273,2]
[380154852,1755580244646,-1365.03,0.00020273,2]
[380154854,1755580244655,-679.88,0.00020273,2]
[380154856,1755580244664,-617.8,0.00020273,2]
[380154858,1755580244673,-1345.49,0.00020273,2]
[380154860,1755580244683,-480.0,0.00020273,2]
[380154862,1755580244692,-1037.02,0.00020273,2]
[380154863,1755580244702,-629.35,0.00020273,2]
[380154864,1755580244712,-1203.52,0.00020273,2]
[380154865,1755580244721,-480.0,0.00020273,2]
[380154866,1755580244731,-522.31,0.00020273,2]
[380154867,1755580244740,-705.72,0.00020273,2]
[380154868,1755580244749,-1938.41,0.00020273,2]
[380154869,1755580244762,-683.84,0.00020273,2]
[380154870,1755580244771,-574.31,0.00020273,2]
[380154871,1755580244780,-260.6682,0.00020273,2]
[380154872,1755580244790,-480.0,0.00020273,2]
[380154873,1755580244801,-4682.2,0.00020273,2]
[380154874,1755580244811,-151.0,0.00020273,2]
[380154875,1755580244820,-2020.76,0.00020273,2]
[380154876,1755580244831,-480.0,0.00020273,2]
[380154877,1755580244841,-1756.48,0.00020273,2]
[380154878,1755580244851,-626.7,0.00020273,2]
[380154879,1755580244860,-492.73,0.00020273,2]
[380154880,1755580244870,-480.0,0.00020273,2]
[380154881,1755580244879,-151.0,0.00020273,2]
[380154882,1755580244889,-480.0,0.00020273,2]
[380154883,1755580244899,-1588.14,0.00020273,2]
[380154884,1755580244908,-151.646839,0.00020273,2]
[380154885,1755580244918,-480.0,0.00020273,2]
[380154886,1755580244927,-480.0,0.00020273,2]
[380154887,1755580244936,-731.21,0.00020273,2]
[380154888,1755580244946,-214.97,0.00020273,2]
[380154889,1755580244955,-576.05,0.00020273,2]
[380154890,1755580244964,-487.75,0.00020273,2]
[380154891,1755580244974,-1522.88,0.00020273,2]
[380154892,1755580244984,-480.0,0.00020273,2]
[380154893,1755580244993,-480.0,0.00020273,2]
[380154894,1755580245002,-696.9,0.00020273,2]
[380154895,1755580245011,-566.12,0.00020273,2]
[380154896,1755580245021,-480.0,0.00020273,2]
[380154897,1755580245030,-480.0,0.00020273,2]
[380154898,1755580245039,-4128.2,0.00020273,2]
[380154900,1755580245049,-774.82,0.00020273,2]
[380154902,1755580245059,-809.12,0.00020273,2]
[380154904,1755580245068,-490.44,0.00020273,2]
[380154906,1755580245077,-2671.89,0.00020273,2]
[380154908,1755580245086,-480.0,0.00020273,2]
[380154910,1755580245096,-453.72874281,0.00020306,4]
[380154912,1755580245106,-1000.0,0.00020447,2]
[380154914,1755580245115,-214.94788523,0.00020496,4]
[380154916,1755580245126,-501.997214,0.00020509,2]
[380154918,1755580245135,-502.67749315,0.00020521,2]
[380154920,1755580245144,-153.0,0.00020521,2]
[380154922,1755580245154,-153.0,0.00020521,2]
[380154924,1755580245163,-151.0,0.00020521,2]
[380154926,1755580245172,-151.0,0.00020521,2]
[380154928,1755580245182,-151.0,0.00020521,2]
[380154930,1755580245191,-362.268435,0.00020521,2]
[380154932,1755580245201,-362.268435,0.00020521,2]
[380154934,1755580245212,-151.0,0.00020521,2]
[380154936,1755580245221,-151.0,0.00020521,2]
[380154938,1755580245230,-151.0,0.00020521,2]
[380154940,1755580245239,-151.0,0.00020521,2]
[380154942,1755580245248,-151.0,0.00020521,2]
[380154944,1755580245258,-480.0,0.00020547,2]
[380154946,1755580245268,-563.96115341,0.00020547,2]
[380154948,1755580245277,-152.762215,0.00020547,2]
[380154950,1755580245286,-480.0,0.00020547,2]
[380154952,1755580245296,-4689.26,0.00020547,2]
[380154954,1755580245305,-480.0,0.00020547,2]
[380154956,1755580245315,-151.0,0.00020547,2]
[380154958,1755580245324,-151.0,0.00020547,2]
[380154960,1755580245333,-524.4,0.00020547,2]
[380154962,1755580245343,-480.0,0.00020547,2]
[380154964,1755580245351,-480.0,0.00020547,2]
[380154966,1755580245360,-480.0,0.00020547,2]
[380154968,1755580245370,-151.493932,0.00020547,2]
[380154978,1755580245448,-151.0,0.00020547,2]
[380154980,1755580245465,-151.0,0.00020547,2]
[380154982,1755580245474,-1222.85,0.00020547,2]
[380154984,1755580245484,-502.28768657,0.00020547,2]
[380154986,1755580245493,-506.863,0.00020547,2]
[380154987,1755580245502,-151.0,0.00020547,2]
[380154990,1755580245511,-522.48,0.00020547,2]
[380154992,1755580245521,-151.0,0.00020547,2]
[380154994,1755580245531,-151.0,0.00020547,2]
[380154996,1755580245540,-151.0,0.00020547,2]
[380154997,1755580245549,-151.0,0.00020547,2]
[380154999,1755580245559,-480.0,0.00020547,2]
[380155001,1755580245568,-151.0,0.00020547,2]
[380155003,1755580245577,-151.0,0.00020547,2]
[380155005,1755580245586,-151.0,0.00020547,2]
[380155007,1755580245596,-480.0,0.00020547,2]
[380155009,1755580245605,-486.82,0.00020547,2]
[380155011,1755580245614,-500.4,0.00020547,2]
[380155013,1755580245623,-151.0,0.00020547,2]
[380155015,1755580245633,-151.0,0.00020547,2]
[380155017,1755580245642,-746.67,0.00020547,2]
[380155019,1755580245651,-307.450308,0.00020547,2]
[380155021,1755580245660,-307.450308,0.00020547,2]
[380155023,1755580245669,-483.41,0.00020547,2]
[380155025,1755580245679,-480.0,0.00020547,2]
[380155027,1755580245688,-1512.12,0.00020547,2]
[380155029,1755580245697,-151.0,0.00020547,2]
[380155031,1755580245706,-480.0,0.00020547,2]
[380155033,1755580245715,-2860.05,0.00020547,2]
[380155035,1755580245724,-603.04,0.00020547,2]
[380155037,1755580245733,-480.0,0.00020547,2]
[380155039,1755580245743,-1713.33,0.00020547,2]
[380155041,1755580245754,-151.0,0.00020547,2]
[380155043,1755580245764,-249.427536,0.00020547,2]
[380155045,1755580245773,-480.0,0.00020547,2]
[380155047,1755580245782,-249.427536,0.00020547,2]
[380155049,1755580245792,-151.0,0.00020547,2]
[380155051,1755580245802,-151.0,0.00020547,2]
[380155052,1755580245811,-151.0,0.00020547,2]
[380155054,1755580245820,-480.0,0.00020547,2]
[380155056,1755580245830,-256.472762,0.00020547,2]
[380155058,1755580245839,-480.0,0.00020547,2]
[380155060,1755580245848,-480.0,0.00020547,2]
[380155062,1755580245857,-151.0,0.00020547,2]
[380155064,1755580245866,-151.0,0.00020547,2]
[380155066,1755580245875,-480.0,0.00020547,2]
[380155068,1755580245884,-751.61,0.00020547,2]
[380155070,1755580245895,-701.01,0.00020547,2]
[380155072,1755580245903,-791.494942,0.00020547,2]
[380155074,1755580245912,-256.03773,0.00020547,2]
[380155076,1755580245921,-791.494942,0.00020547,2]
[380155078,1755580245931,-480.0,0.00020547,2]
[380155080,1755580245940,-256.03773,0.00020547,2]
[380155082,1755580245949,-151.0,0.00020547,2]
[380155084,1755580245959,-480.0,0.00020547,2]
[380155086,1755580245968,-1276.8,0.00020547,2]
[380155088,1755580245977,-151.0,0.00020547,2]
[380155090,1755580245986,-151.0,0.00020547,2]
[380155092,1755580245995,-151.0,0.00020547,2]
[380155094,1755580246004,-151.0,0.00020547,2]
[380155096,1755580246013,-151.0,0.00020547,2]
[380155098,1755580246023,-151.0,0.00020547,2]
[380155100,1755580246033,-480.0,0.00020547,2]
[380155102,1755580246042,-151.0,0.00020547,2]
[380155104,1755580246051,-151.0,0.00020547,2]
[380155106,1755580246060,-480.0,0.00020547,2]
[380155108,1755580246069,-675.59,0.00020547,2]
[380155110,1755580246078,-480.0,0.00020547,2]
[380155112,1755580246087,-1121.95,0.00020547,2]
[380155114,1755580246095,-151.0,0.00020547,2]
[380155116,1755580246104,-151.0,0.00020547,2]
[380155118,1755580246114,-210.512124,0.00020547,2]
[380155120,1755580246123,-210.512124,0.00020547,2]
[380155122,1755580246132,-151.0,0.00020547,2]
[380155124,1755580246142,-1365.03,0.00020547,2]
[380155125,1755580246151,-679.88,0.00020547,2]
[380155126,1755580246160,-617.8,0.00020547,2]
[380155127,1755580246169,-1345.49,0.00020547,2]
[380155129,1755580246179,-480.0,0.00020547,2]
[380155130,1755580246189,-1037.02,0.00020547,2]
[380155131,1755580246199,-629.35,0.00020547,2]
[380155132,1755580246209,-1203.52,0.00020547,2]
[380155133,1755580246218,-480.0,0.00020547,2]
[380155134,1755580246228,-522.31,0.00020547,2]
[380155135,1755580246237,-705.72,0.00020547,2]
[380155136,1755580246247,-1123.10911715,0.00020547,2]
[380155137,1755580246262,-815.30088285,0.00020547,2]
[380155138,1755580246272,-683.84,0.00020547,2]
[380155139,1755580246281,-574.31,0.00020547,2]
[380155140,1755580246290,-480.0,0.00020547,2]
[380155141,1755580246300,-149.90911715,0.00020547,2]
[380155142,1755580246316,-480.0,0.00019178,2]
[380155143,1755580246325,-606.51324501,0.00020547,2]
[380155149,1755580246388,-480.0,0.00019178,2]
[380155150,1755580246397,-480.0,0.00019178,2]
[380155151,1755580246407,-602.16422467,0.00020547,2]
[380155152,1755580246418,-1152.95302011,0.00020547,2]
[380155153,1755580246433,-2170.66039306,0.00020547,2]
[380155154,1755580246442,-2020.76,0.00020547,2]
[380155155,1755580246451,-480.0,0.00020547,2]
[380155156,1755580246461,-557.82028694,0.00020547,2]
[380155157,1755580246514,-509.49004605,0.00020547,2]
[380155168,1755580264865,159.266538,0.00013699,2]
[380155174,1755580967708,480.0,0.00027945,120]
[380155177,1755581131785,5011.87,0.00018216,2]
[380155182,1755581239105,-246.62812186,0.000189,2]
[380155183,1755581239129,-193.92001916,0.00019078,2]
[380155184,1755581239151,-172.96257121,0.00019078,2]
[380155185,1755581255731,750.0,0.00028,120]
[380155296,1755581435795,-2136.28987411,0.00019078,2]
[380155298,1755581435805,-549.31173767,0.00019078,2]
[380155300,1755581435814,-500.0,0.00019173,2]
[380155302,1755581435823,-517.51891633,0.00019173,2]
[380155304,1755581435832,-300.0,0.00019176,2]
[380155306,1755581435842,-1200.0,0.00019176,2]
[380155308,1755581435852,-1200.0,0.00019177,2]
[380155310,1755581435863,-248.62161105,0.00019177,2]
[380155312,1755581435872,-480.0,0.00019178,2]
[380155314,1755581435881,-480.0,0.00019178,2]
[380155316,1755581435890,-207.80306449,0.00019178,2]
[380155318,1755581435901,-272.19693551,0.00019178,2]
[380155320,1755581435911,-480.0,0.00019178,2]
[380155322,1755581435920,-480.0,0.00019178,2]
[380155324,1755581435929,-480.0,0.00019178,2]
[380155326,1755581435938,-480.0,0.00019178,2]
[380155328,1755581435947,-480.0,0.00019178,2]
[380155330,1755581435957,-480.0,0.00019178,2]